fUST/lending_fUST_20241203
["ID","MTS","AMOUNT","RATE_DAILY","PERIOD"]
[344008568,1733189257502,-500.0,0.00027671,7]
[344008569,1733189257525,-500.0,0.00027671,7]
[344008570,1733189257549,-500.0,0.00027671,7]
[344008571,1733189257571,-413.926458,0.00027671,7]
[344008572,1733189257594,-500.0,0.00027671,7]
[344008573,1733189257616,-500.0,0.00027671,7]
[344008574,1733189257639,-500.0,0.00027671,7]
[344008575,1733189257665,-500.0,0.00027671,7]
[344008576,1733189257687,-500.0,0.00027671,7]
[344008577,1733189257710,-500.0,0.00027671,7]
[344008578,1733189257731,-500.0,0.00027671,7]
[344008579,1733189257753,-500.0,0.00027671,7]
[344008580,1733189257775,-500.0,0.00027671,7]
[344008581,1733189257798,-500.0,0.00027671,7]
[344008582,1733189257821,-960.6,0.00027671,7]
[344008583,1733189257843,-500.0,0.00027671,7]
[344008584,1733189257865,-500.0,0.00027671,7]
[344008585,1733189257893,-500.0,0.00027671,7]
[344008586,1733189257919,-6865.12,0.00027671,7]
[344008587,1733189257942,-500.0,0.00027671,7]
[344008588,1733189257963,-500.0,0.00027671,7]
[344008589,1733189257987,-500.0,0.00027671,7]
[344008590,1733189258009,-500.0,0.00027671,7]
[344008591,1733189258031,-500.0,0.00027671,7]
[344008592,1733189258053,-500.0,0.00027671,7]
[344008593,1733189258076,-500.0,0.00027671,7]
[344008594,1733189258098,-500.0,0.00027671,7]
[344008595,1733189258120,-500.0,0.00027671,7]
[344008596,1733189258143,-4603.37,0.00027671,7]
[344008597,1733189258168,-500.0,0.00027671,7]
[344008598,1733189258191,-638.21,0.00027671,7]
[344008599,1733189258214,-877.06,0.00027671,7]
[344008600,1733189258235,-150.17,0.00027671,7]
[344008601,1733189258256,-500.0,0.00027671,7]
[344008602,1733189258278,-500.0,0.00027671,7]
[344008603,1733189258301,-500.0,0.00027671,7]
[344008604,1733189258322,-500.0,0.00027671,7]
[344008605,1733189258343,-500.0,0.00027671,7]
[344008606,1733189258367,-500.0,0.00027671,7]
[344008607,1733189258389,-500.0,0.00027671,7]
[344008608,1733189258414,-500.0,0.00027671,7]
[344008609,1733189258439,-1803.67,0.00027671,7]
[344008610,1733189258530,-500.0,0.00027671,7]
[344008611,1733189258552,-500.0,0.00027671,7]
[344008612,1733189258574,-500.0,0.00027671,7]
[344008613,1733189258595,-683.5,0.00027671,7]
[344008614,1733189258615,-338.73677912,0.00027671,7]
[344008615,1733189258636,-500.0,0.00027671,7]
[344008616,1733189258659,-500.0,0.00027671,7]
[344008617,1733189258680,-558.4,0.00027671,7]
[344008618,1733189258701,-1015.43,0.00027671,7]
[344008619,1733189258722,-500.0,0.00027671,7]
[344008620,1733189258742,-500.0,0.00027671,7]
[344008621,1733189258763,-499.95592157,0.00027671,7]
[344008622,1733189258788,-283.0724354,0.00027671,7]
[344008623,1733189258809,-500.0,0.00027671,7]
[344008624,1733189258831,-500.0,0.00027671,7]
[344008625,1733189258852,-500.0,0.00027671,7]
[344008626,1733189258873,-2281.8,0.00027671,7]
[344008627,1733189258895,-500.0,0.00027671,7]
[344008628,1733189258923,-500.0,0.00027671,7]
[344008629,1733189258944,-500.0,0.00027671,7]
[344008630,1733189258965,-1000.0,0.00027681,2]
[344008631,1733189258988,-1000.0,0.00027715,2]
[344008632,1733189259010,-1000.0,0.00027755,2]
[344008633,1733189259031,-186.5884622,0.0002777,2]
[344008634,1733189259052,-1000.0,0.00027834,2]
[344008635,1733189259075,-1093.2942311,0.00027842,2]
[344008636,1733189259097,-207.34242817,0.00027846,2]
[344008637,1733189259116,-497.4027525,0.00027849,2]
[344008638,1733189259136,-1000.0,0.00027864,2]
[344008639,1733189259159,-1000.0,0.00027886,2]
[344008640,1733189259180,-1000.0,0.00027896,2]
[344008641,1733189259200,-187.25,0.000279,2]
[344008642,1733189259221,-151.0,0.000279,20]
[344008643,1733189259242,-160.0,0.0002792,10]
[344008644,1733189259263,-160.0,0.0002792,10]
[344008645,1733189259283,-591.49043794,0.00027921,5]
[344008646,1733189259303,-1000.0,0.00027921,5]
[344008647,1733189259324,-1000.0,0.00027921,5]
[344008648,1733189259344,-502.89504957,0.00027921,5]
[344008649,1733189259365,-1000.0,0.00027921,5]
[344008650,1733189259385,-1002.01339552,0.00027921,5]
[344008651,1733189259409,-160.0,0.00027944,10]
[344008652,1733189259431,-160.0,0.00027944,10]
[344008653,1733189259454,-180017.47263996,0.00027945,2]
[344008654,1733189259475,-150.17,0.00027945,7]
[344008655,1733189259496,-528.02,0.00027945,2]
[344008656,1733189259518,-491.6905284,0.00027945,7]
[344008657,1733189259539,-500.0,0.00027945,7]
[344008658,1733189259559,-500.0,0.00027945,7]
[344008659,1733189259580,-500.0,0.00027945,7]
[344008660,1733189259600,-500.0,0.00027945,7]
[344008661,1733189259621,-500.0,0.00027945,7]
[344008662,1733189259641,-500.0,0.00027945,7]
[344008663,1733189259664,-321.90463347,0.00027945,7]
[344008664,1733189259686,-500.0,0.00027945,7]
[344008665,1733189259709,-441.97535789,0.00027945,7]
[344008666,1733189259731,-500.0,0.00027945,7]
[344008667,1733189259752,-500.0,0.00027945,7]
[344008668,1733189259773,-454.13204462,0.00027945,7]
[344008669,1733189259793,-500.0,0.00027945,7]
[344008670,1733189259814,-267.47419228,0.00027945,7]
[344008671,1733189259835,-500.0,0.00027945,7]
[344008672,1733189259856,-712.86,0.00027945,7]
[344008673,1733189259881,-572.69,0.00027945,7]
[344008674,1733189259903,-500.0,0.00027945,7]
[344008675,1733189259925,-571.84,0.00027945,7]
[344008676,1733189259945,-1753.2,0.00027945,7]
[344008677,1733189260022,-500.0,0.00027945,7]
[344008678,1733189260054,-500.0,0.00027945,7]
[344008679,1733189260075,-500.0,0.00027945,7]
[344008680,1733189260095,-500.0,0.00027945,7]
[344008681,1733189260116,-500.0,0.00027945,7]
[344008682,1733189260137,-500.0,0.00027945,7]
[344008683,1733189260158,-1934.13,0.00027945,7]
[344008684,1733189260179,-542.43,0.00027945,7]
[344008685,1733189260201,-500.0,0.00027945,7]
[344008686,1733189260223,-500.0,0.00027945,7]
[344008687,1733189260245,-350.9133068,0.00027945,7]
[344008688,1733189260266,-500.0,0.00027945,7]
[344008689,1733189260287,-500.0,0.00027945,7]
[344008690,1733189260309,-500.0,0.00027945,7]
[344008691,1733189260330,-561.71,0.00027945,7]
[344008692,1733189260357,-500.0,0.00027945,7]
[344008693,1733189260378,-500.0,0.00027945,7]
[344008694,1733189260400,-500.0,0.00027945,7]
[344008695,1733189260423,-500.0,0.00027945,7]
[344008696,1733189260444,-500.0,0.00027945,7]
[344008697,1733189260465,-500.0,0.00027945,7]
[344008698,1733189260486,-289.89368433,0.00027945,7]
[344008699,1733189260507,-550.2739242,0.00027945,7]
[344008700,1733189260528,-431.29891716,0.00027945,7]
[344008701,1733189260551,-500.0,0.00027945,7]
[344008702,1733189260579,-500.0,0.00027945,7]
[344008703,1733189260605,-500.0,0.00027945,7]
[344008704,1733189260627,-500.0,0.00027945,7]
[344008705,1733189260649,-500.0,0.00027945,7]
[344008706,1733189260672,-500.0,0.00027945,7]
[344008707,1733189260694,-500.0,0.00027945,7]
[344008708,1733189260717,-405.24915313,0.00027945,7]
[344008709,1733189260738,-500.0,0.00027945,7]
[344008710,1733189260760,-510.16554965,0.00027945,7]
[344008711,1733189260781,-500.0,0.00027945,7]
[344008712,1733189260803,-500.0,0.00027945,7]
[344008713,1733189260825,-500.0,0.00027945,7]
[344008714,1733189260847,-500.0,0.00027945,7]
[344008715,1733189260868,-500.0,0.00027945,7]
[344008716,1733189260891,-500.0,0.00027945,7]
[344008717,1733189260915,-500.0,0.00027945,7]
[344008718,1733189260938,-344.43996958,0.00027945,7]
[344008719,1733189260960,-960.6,0.00027945,7]
[344008720,1733189260986,-500.0,0.00027945,7]
[344008721,1733189261008,-500.0,0.00027945,7]
[344008722,1733189261030,-500.0,0.00027945,7]
[344008723,1733189261053,-6865.12,0.00027945,7]
[344008724,1733189261075,-500.0,0.00027945,7]
[344008725,1733189261097,-500.0,0.00027945,7]
[344008726,1733189261118,-500.0,0.00027945,7]
[344008727,1733189261140,-325.22214229,0.00027945,7]
[344008728,1733189261167,-500.0,0.00027945,7]
[344008729,1733189261189,-500.0,0.00027945,7]
[344008730,1733189261211,-411.94,0.00027945,7]
[344008731,1733189261232,-500.0,0.00027945,7]
[344008732,1733189261255,-500.0,0.00027945,7]
[344008733,1733189261278,-4603.37,0.00027945,7]
[344008734,1733189261299,-507.70909683,0.00027945,7]
[344008735,1733189261322,-638.21,0.00027945,7]
[344008736,1733189261343,-877.06,0.00027945,7]
[344008737,1733189261365,-500.0,0.00027945,7]
[344008738,1733189261387,-500.0,0.00027945,7]
[344008740,1733189261410,-500.0,0.00027945,7]
[344008741,1733189261433,-500.0,0.00027945,7]
[344008742,1733189261455,-500.0,0.00027945,7]
[344008743,1733189261477,-165.36922323,0.00027945,7]
[344008744,1733189261586,-1803.67,0.00027945,7]
[344008745,1733189261609,-216.43899052,0.00027945,7]
[344008746,1733189261630,-500.0,0.00027945,7]
[344008747,1733189261652,-500.0,0.00027945,7]
[344008748,1733189261676,-683.5,0.00027945,7]
[344008749,1733189261697,-471.65,0.00027945,7]
[344008750,1733189261720,-558.4,0.00027945,7]
[344008751,1733189261742,-1015.43,0.00027945,7]
[344008752,1733189261765,-500.0,0.00027945,7]
[344008753,1733189261786,-500.0,0.00027945,7]
[344008754,1733189261808,-500.0,0.00027945,7]
[344008755,1733189261830,-500.0,0.00027945,7]
[344008756,1733189261851,-500.0,0.00027945,7]
[344008757,1733189261873,-2281.8,0.00027945,7]
[344008758,1733189261898,-500.0,0.00027945,7]
[344008759,1733189261921,-500.0,0.00027945,7]
[344008760,1733189261943,-503.42888052,0.00027945,7]
[344008761,1733189261964,-160.0,0.00027989,10]
[344008762,1733189261986,-180.34120425,0.00027989,10]
[344008763,1733189262007,-32061.93729612,0.0002799,2]
[344008764,1733189262030,-160.0,0.00027999,10]
[344008765,1733189262053,-7686.91773083,0.00028,2]
[344008766,1733189262074,-1999.999999,0.00028,2]
[344008767,1733189262096,-152.8,0.00028086,6]
[344008768,1733189262117,-724.123,0.00028114,15]
[344008769,1733189262139,-497.4027525,0.00028124,2]
[344008770,1733189262164,-151.0,0.000282,16]
[344008771,1733189262185,-160.0,0.00028218,10]
[344008772,1733189262207,-154.28771858,0.00028219,7]
[344008773,1733189262228,-528.02,0.00028219,2]
[344008774,1733189262249,-500.0,0.00028219,7]
[344008775,1733189262271,-500.0,0.00028219,7]
[344008776,1733189262292,-500.0,0.00028219,7]
[344008777,1733189262313,-500.0,0.00028219,7]
[344008778,1733189262335,-500.0,0.00028219,7]
[344008779,1733189262357,-500.0,0.00028219,7]
[344008780,1733189262378,-500.0,0.00028219,7]
[344008781,1733189262403,-500.0,0.00028219,7]
[344008782,1733189262426,-500.0,0.00028219,7]
[344008783,1733189262448,-500.0,0.00028219,7]
[344008784,1733189262470,-500.0,0.00028219,7]
[344008785,1733189262492,-712.86,0.00028219,7]
[344008786,1733189262514,-572.69,0.00028219,7]
[344008787,1733189262536,-500.0,0.00028219,7]
[344008788,1733189262558,-571.84,0.00028219,7]
[344008789,1733189262579,-1753.2,0.00028219,7]
[344008790,1733189262600,-250.22357319,0.00028219,7]
[344008791,1733189262621,-639.98578893,0.00028219,7]
[344008792,1733189262642,-507.58584834,0.00028219,7]
[344008793,1733189262665,-500.0,0.00028219,7]
[344008794,1733189262686,-500.0,0.00028219,7]
[344008795,1733189262707,-567.8760026,0.00028219,7]
[344008796,1733189262728,-1934.13,0.00028219,7]
[344008797,1733189262749,-542.43,0.00028219,7]
[344008798,1733189262769,-511.82446964,0.00028219,7]
[344008799,1733189262790,-500.0,0.00028219,7]
[344008800,1733189262811,-500.0,0.00028219,7]
[344008801,1733189262832,-500.0,0.00028219,7]
[344008802,1733189262853,-500.0,0.00028219,7]
[344008803,1733189262874,-561.71,0.00028219,7]
[344008804,1733189262897,-500.0,0.00028219,7]
[344008805,1733189262921,-500.0,0.00028219,7]
[344008806,1733189262943,-500.0,0.00028219,7]
[344008807,1733189263028,-454.5589316,0.00028219,7]
[344008808,1733189263051,-500.0,0.00028219,7]
[344008809,1733189263073,-500.0,0.00028219,7]
[344008810,1733189263095,-500.0,0.00028219,7]
[344008811,1733189263120,-500.0,0.00028219,7]
[344008812,1733189263144,-500.0,0.00028219,7]
[344008813,1733189263175,-500.0,0.00028219,7]
[344008814,1733189263204,-500.0,0.00028219,7]
[344008815,1733189263228,-500.0,0.00028219,7]
[344008816,1733189263251,-500.0,0.00028219,7]
[344008817,1733189263273,-500.0,0.00028219,7]
[344008818,1733189263296,-500.0,0.00028219,7]
[344008819,1733189263319,-500.0,0.00028219,7]
[344008820,1733189263341,-500.0,0.00028219,7]
[344008821,1733189263363,-500.0,0.00028219,7]
[344008822,1733189263393,-500.0,0.00028219,7]
[344008823,1733189263418,-500.0,0.00028219,7]
[344008824,1733189263441,-960.6,0.00028219,7]
[344008825,1733189263464,-500.0,0.00028219,7]
[344008826,1733189263486,-500.0,0.00028219,7]
[344008827,1733189263510,-500.0,0.00028219,7]
[344008828,1733189263533,-6865.12,0.00028219,7]
[344008829,1733189263558,-500.0,0.00028219,7]
[344008830,1733189263584,-500.0,0.00028219,7]
[344008831,1733189263607,-500.0,0.00028219,7]
[344008832,1733189263628,-500.0,0.00028219,7]
[344008833,1733189263650,-500.0,0.00028219,7]
[344008834,1733189263673,-500.0,0.00028219,7]
[344008835,1733189263694,-500.0,0.00028219,7]
[344008836,1733189263716,-4603.37,0.00028219,7]
[344008837,1733189263739,-638.21,0.00028219,7]
[344008838,1733189263760,-877.06,0.00028219,7]
[344008839,1733189263780,-500.0,0.00028219,7]
[344008840,1733189263801,-500.0,0.00028219,7]
[344008841,1733189263822,-500.0,0.00028219,7]
[344008842,1733189263842,-500.0,0.00028219,7]
[344008843,1733189263863,-500.0,0.00028219,7]
[344008844,1733189263885,-1803.67,0.00028219,7]
[344008845,1733189263909,-500.0,0.00028219,7]
[344008846,1733189263932,-500.0,0.00028219,7]
[344008847,1733189263954,-683.5,0.00028219,7]
[344008848,1733189263978,-558.4,0.00028219,7]
[344008849,1733189264000,-1015.43,0.00028219,7]
[344008850,1733189264020,-500.0,0.00028219,7]
[344008851,1733189264041,-500.0,0.00028219,7]
[344008852,1733189264062,-540.9377545,0.00028219,7]
[344008853,1733189264083,-500.0,0.00028219,7]
[344008854,1733189264104,-500.0,0.00028219,7]
[344008855,1733189264127,-2281.8,0.00028219,7]
[344008856,1733189264148,-500.0,0.00028219,7]
[344008857,1733189264172,-500.0,0.00028219,7]
[344008858,1733189264193,-160.0,0.00028393,10]
[344008859,1733189264214,-150.0,0.00028394,2]
[344008860,1733189264234,-286.138,0.00028394,2]
[344008861,1733189264256,-2173.0,0.00028394,2]
[344008862,1733189264276,-2376.0,0.00028394,2]
[344008863,1733189264297,-29000.1133333,0.000284,5]
[344008864,1733189264319,-497.4027525,0.000284,2]
[344008865,1733189264340,-500.0,0.00028473,5]
[344008866,1733189264361,-528.02,0.00028493,2]
[344008867,1733189264383,-500.0,0.00028493,7]
[344008868,1733189264469,-500.0,0.00028493,7]
[344008869,1733189264491,-500.0,0.00028493,7]
[344008870,1733189264513,-500.0,0.00028493,7]
[344008871,1733189264535,-500.0,0.00028493,7]
[344008872,1733189264556,-500.0,0.00028493,7]
[344008873,1733189264577,-500.0,0.00028493,7]
[344008874,1733189264598,-500.0,0.00028493,7]
[344008875,1733189264619,-500.0,0.00028493,7]
[344008876,1733189264640,-500.0,0.00028493,7]
[344008877,1733189264663,-500.0,0.00028493,7]
[344008878,1733189264684,-712.86,0.00028493,7]
[344008879,1733189264706,-572.69,0.00028493,7]
[344008880,1733189264730,-500.0,0.00028493,7]
[344008881,1733189264752,-571.84,0.00028493,7]
[344008882,1733189264776,-1753.2,0.00028493,7]
[344008883,1733189264797,-500.0,0.00028493,7]
[344008884,1733189264818,-396.59720407,0.00028493,7]
[344008885,1733189264838,-542.43,0.00028493,7]
[344008886,1733189264859,-1934.13,0.00028493,7]
[344008887,1733189264881,-500.0,0.00028493,7]
[344008888,1733189264906,-500.0,0.00028493,7]
[344008889,1733189264936,-500.0,0.00028493,7]
[344008890,1733189264957,-500.0,0.00028493,7]
[344008891,1733189264982,-561.71,0.00028493,7]
[344008892,1733189265004,-500.0,0.00028493,7]
[344008893,1733189265026,-500.0,0.00028493,7]
[344008894,1733189265048,-500.0,0.00028493,7]
[344008895,1733189265071,-500.0,0.00028493,7]
[344008896,1733189265093,-500.0,0.00028493,7]
[344008897,1733189265115,-500.0,0.00028493,7]
[344008898,1733189265138,-187.76915414,0.00028493,7]
[344008899,1733189265163,-500.0,0.00028493,7]
[344008900,1733189265187,-500.0,0.00028493,7]
[344008901,1733189265209,-500.0,0.00028493,7]
[344008902,1733189265232,-625.14149597,0.00028493,7]
[344008903,1733189265255,-500.0,0.00028493,7]
[344008904,1733189265277,-500.0,0.00028493,7]
[344008905,1733189265302,-500.0,0.00028493,7]
[344008906,1733189265324,-500.0,0.00028493,7]
[344008907,1733189265346,-500.0,0.00028493,7]
[344008908,1733189265369,-500.0,0.00028493,7]
[344008909,1733189265392,-500.0,0.00028493,7]
[344008910,1733189265418,-960.6,0.00028493,7]
[344008911,1733189265441,-500.0,0.00028493,7]
[344008912,1733189265465,-500.0,0.00028493,7]
[344008913,1733189265490,-605.79051589,0.00028493,7]
[344008914,1733189265515,-6865.12,0.00028493,7]
[344008915,1733189265538,-587.5149882,0.00028493,7]
[344008916,1733189265563,-372.78,0.00028493,7]
[344008917,1733189265586,-500.0,0.00028493,7]
[344008918,1733189265608,-500.0,0.00028493,7]
[344008919,1733189265631,-500.0,0.00028493,7]
[344008920,1733189265655,-4603.37,0.00028493,7]
[344008921,1733189265681,-638.21,0.00028493,7]
[344008922,1733189265703,-877.06,0.00028493,7]
[344008923,1733189265725,-500.0,0.00028493,7]
[344008924,1733189265748,-500.0,0.00028493,7]
[344008925,1733189265772,-500.0,0.00028493,7]
[344008926,1733189265866,-500.0,0.00028493,7]
[344008927,1733189265895,-500.0,0.00028493,7]
[344008928,1733189265925,-1803.67,0.00028493,7]
[344008929,1733189265949,-500.0,0.00028493,7]
[344008930,1733189265974,-500.0,0.00028493,7]
[344008931,1733189265997,-683.5,0.00028493,7]
[344008932,1733189266020,-558.4,0.00028493,7]
[344008933,1733189266043,-1015.43,0.00028493,7]
[344008934,1733189266065,-500.0,0.00028493,7]
[344008935,1733189266089,-500.0,0.00028493,7]
[344008936,1733189266111,-556.23211671,0.00028493,7]
[344008937,1733189266134,-500.0,0.00028493,7]
[344008938,1733189266157,-2281.8,0.00028493,7]
[344008939,1733189266185,-643.50471269,0.00028493,7]
[344008940,1733189266208,-500.0,0.00028493,7]
[344008941,1733189266232,-556314.3203648,0.000285,5]
[344008946,1733189365354,314.0,0.00029205,120]
[344008951,1733189380872,391.0,0.00029185,120]
[344008952,1733189380895,391.0,0.00029185,120]
[344008986,1733189432341,-151.0,0.00019447,2]
[344008988,1733189432351,-151.0,0.00019447,2]
[344008989,1733189432361,-341.76837156,0.0002,2]
[344008992,1733189432390,-827.50246177,0.0002,2]
[344008993,1733189432400,-652.28524667,0.00023,2]
[344008994,1733189432409,-170.134275,0.00025001,2]
[344008995,1733189432418,-300.0,0.00025265,2]
[344008996,1733189432427,-300.0,0.00025265,2]
[344008997,1733189432437,-151.0,0.00025266,7]
[344008998,1733189432447,-151.0,0.00025266,7]
[344008999,1733189432456,-151.0,0.00025266,7]
[344009000,1733189432465,-151.0,0.00025266,7]
[344009001,1733189432475,-151.0,0.00025266,7]
[344009002,1733189432484,-151.0,0.00025266,7]
[344009003,1733189432494,-151.0,0.00025266,7]
[344009004,1733189432504,-151.0,0.00025266,7]
[344009005,1733189432514,-248.108398,0.00025266,7]
[344009006,1733189432525,-151.0,0.00025394,7]
[344009007,1733189432534,-4722.17805956,0.00026,30]
[344009042,1733189438371,-9.24455644,0.00026,30]
[344009043,1733189438381,-10507.5165027,0.00026412,2]
[344009044,1733189438390,-151.0,0.00027297,7]
[344009045,1733189438400,-420.0,0.00027363,2]
[344009046,1733189438409,-466.86467736,0.00027397,2]
[344009047,1733189438418,-500.0,0.00027397,7]
[344009049,1733189438428,-1387.95,0.00027397,7]
[344009050,1733189438437,-500.0,0.00027397,7]
[344009051,1733189438447,-500.0,0.00027397,7]
[344009052,1733189438457,-5434.89,0.00027397,7]
[344009053,1733189438466,-500.0,0.00027397,7]
[344009054,1733189438476,-500.0,0.00027397,7]
[344009055,1733189438486,-500.0,0.00027397,7]
[344009056,1733189438496,-500.0,0.00027397,7]
[344009057,1733189438505,-1531.19,0.00027397,7]
[344009058,1733189438514,-500.0,0.00027397,7]
[344009059,1733189438524,-500.0,0.00027397,7]
[344009060,1733189438539,-291.25,0.00027397,7]
[344009061,1733189438549,-3644.33,0.00027397,7]
[344009062,1733189438559,-548.16,0.00027397,7]
[344009063,1733189438663,-500.0,0.00027397,7]
[344009064,1733189438677,-803.88,0.00027397,7]
[344009065,1733189438688,-500.0,0.00027397,7]
[344009066,1733189438698,-500.0,0.00027397,7]
[344009067,1733189438707,-500.0,0.00027397,7]
[344009068,1733189438716,-500.0,0.00027397,7]
[344009069,1733189438725,-500.0,0.00027397,7]
[344009070,1733189438735,-365.54593038,0.00027397,7]
[344009071,1733189438744,-513.28,0.00027397,7]
[344009072,1733189438754,-500.0,0.00027397,7]
[344009073,1733189438763,-500.0,0.00027397,7]
[344009074,1733189438772,-500.0,0.00027397,7]
[344009075,1733189438784,-606.47933824,0.000275,2]
[344009076,1733189438797,-33000.0,0.00027571,2]
[344009077,1733189438807,-1451.92,0.00027661,10]
[344009078,1733189438817,-410.57137514,0.0002767,2]
[344009079,1733189438826,-391.76123501,0.0002767,2]
[344009080,1733189438836,-272.79392841,0.0002767,2]
[344009081,1733189438847,-500.0,0.00027671,7]
[344009082,1733189438856,-1387.95,0.00027671,7]
[344009083,1733189438866,-500.0,0.00027671,7]
[344009084,1733189438875,-500.0,0.00027671,7]
[344009085,1733189438884,-5434.89,0.00027671,7]
[344009086,1733189438894,-500.0,0.00027671,7]
[344009087,1733189438903,-500.0,0.00027671,7]
[344009088,1733189438912,-500.0,0.00027671,7]
[344009089,1733189438925,-500.0,0.00027671,7]
[344009090,1733189438934,-1531.19,0.00027671,7]
[344009091,1733189438947,-500.0,0.00027671,7]
[344009092,1733189438956,-500.0,0.00027671,7]
[344009093,1733189438966,-3644.33,0.00027671,7]
[344009094,1733189438976,-548.16,0.00027671,7]
[344009095,1733189438986,-500.0,0.00027671,7]
[344009096,1733189438996,-803.88,0.00027671,7]
[344009097,1733189439005,-500.0,0.00027671,7]
[344009098,1733189439016,-500.0,0.00027671,7]
[344009099,1733189439026,-500.0,0.00027671,7]
[344009100,1733189439038,-500.0,0.00027671,7]
[344009101,1733189439047,-500.0,0.00027671,7]
[344009102,1733189439057,-513.28,0.00027671,7]
[344009103,1733189439066,-500.0,0.00027671,7]
[344009104,1733189439076,-500.0,0.00027671,7]
[344009105,1733189439085,-471.13174306,0.00027671,7]
[344009106,1733189439095,-420.0,0.00027791,2]
[344009107,1733189439105,-592.2024827,0.00027945,7]
[344009108,1733189439114,-1387.95,0.00027945,7]
[344009109,1733189439124,-500.0,0.00027945,7]
[344009110,1733189439134,-500.0,0.00027945,7]
[344009111,1733189439144,-5434.89,0.00027945,7]
[344009112,1733189439154,-500.0,0.00027945,7]
[344009113,1733189439164,-500.0,0.00027945,7]
[344009114,1733189439174,-500.0,0.00027945,7]
[344009115,1733189439183,-500.0,0.00027945,7]
[344009116,1733189439193,-1531.19,0.00027945,7]
[344009117,1733189439204,-500.0,0.00027945,7]
[344009118,1733189439213,-500.0,0.00027945,7]
[344009119,1733189439223,-3644.33,0.00027945,7]
[344009120,1733189439232,-548.16,0.00027945,7]
[344009121,1733189439243,-500.0,0.00027945,7]
[344009122,1733189439253,-803.88,0.00027945,7]
[344009123,1733189439262,-500.0,0.00027945,7]
[344009124,1733189439272,-500.0,0.00027945,7]
[344009125,1733189439284,-500.0,0.00027945,7]
[344009126,1733189439294,-500.0,0.00027945,7]
[344009127,1733189439303,-500.0,0.00027945,7]
[344009128,1733189439313,-513.28,0.00027945,7]
[344009129,1733189439323,-500.0,0.00027945,7]
[344009130,1733189439333,-500.0,0.00027945,7]
[344009131,1733189439342,-1387.95,0.00028219,7]
[344009132,1733189439352,-500.0,0.00028219,7]
[344009133,1733189439362,-500.0,0.00028219,7]
[344009134,1733189439373,-5434.89,0.00028219,7]
[344009135,1733189439382,-500.0,0.00028219,7]
[344009136,1733189439393,-501.88024791,0.00028219,7]
[344009137,1733189439402,-500.0,0.00028219,7]
[344009138,1733189439412,-500.0,0.00028219,7]
[344009139,1733189439422,-1531.19,0.00028219,7]
[344009140,1733189439431,-500.0,0.00028219,7]
[344009141,1733189439441,-615.82189018,0.00028219,7]
[344009142,1733189439451,-3644.33,0.00028219,7]
[344009143,1733189439461,-548.16,0.00028219,7]
[344009144,1733189439471,-500.0,0.00028219,7]
[344009145,1733189439480,-803.88,0.00028219,7]
[344009146,1733189439490,-500.0,0.00028219,7]
[344009147,1733189439499,-500.0,0.00028219,7]